fUSD/lending_fUSD_20250916
["ID","MTS","AMOUNT","RATE_DAILY","PERIOD"]
[385750215,1758007723554,-227.61298353,0.000198,2]
[385750260,1758007794736,406.38,0.000276,30]
[385750265,1758007831871,-1057.44816829,0.00019899,2]
[385750266,1758007831883,-142.55183171,0.00019899,2]
[385750267,1758007831893,-160.70198518,0.000199,2]
[385750268,1758007831904,-131.93097867,0.000199,2]
[385750269,1758007832080,-1346.86163858,0.000199,2]
[385750295,1758007838293,-9485.24192284,0.000199,2]
[385750297,1758007838302,-152.15,0.0001999,2]
[385750299,1758007838311,-152.15,0.0001999,2]
[385750301,1758007838320,-527.60388003,0.00019999,2]
[385750302,1758007838330,-1962347.95725262,0.0002,2]
[385750304,1758007838339,-479.92558009,0.0002,2]
[385750306,1758007838349,-4000.0,0.0002,4]
[385750308,1758007838359,-10144.23757578,0.0002025,2]
[385750309,1758007838368,-157.28,0.0002045,2]
[385750310,1758007838377,-152.15,0.00020779,2]
[385750311,1758007838387,-10964.03454008,0.00020789,2]
[385750312,1758007838396,-10144.23757578,0.000211,2]
[385750313,1758007838405,-10964.03454008,0.00021678,2]
[385750314,1758007838414,-1680.0,0.00021774,2]
[385750315,1758007838424,-10144.23757578,0.0002195,2]
[385750316,1758007838432,-157.28,0.00022495,2]
[385750317,1758007838442,-10964.03454008,0.00022567,2]
[385750318,1758007838451,-10144.23757578,0.000228,2]
[385750319,1758007838460,-8988.69,0.00023383,2]
[385750320,1758007838470,-10964.03454008,0.00023456,2]
[385750321,1758007838479,-250.0,0.00023487,2]
[385750322,1758007838489,-10144.23757578,0.0002365,2]
[385750323,1758007838498,-671.0,0.00023826,2]
[385750324,1758007838508,-200.0,0.00023973,2]
[385750325,1758007838517,-125925.32251161,0.00023999,2]
[385750326,1758007838527,-5000.00023093,0.00024,5]
[385750328,1758007838536,-152.15,0.00024164,2]
[385750329,1758007838545,-158.845155,0.00024174,7]
[385750331,1758007838554,-150.99,0.00024174,2]
[385750333,1758007838564,-1576.21,0.00024174,2]
[385750334,1758007838573,-97556.24,0.00024174,2]
[385750335,1758007838582,-304.22,0.00024174,2]
[385750336,1758007838591,-9999.99,0.00024174,2]
[385750337,1758007838601,-341.65,0.00024174,2]
[385750338,1758007838610,-9999.99,0.00024174,2]
[385750339,1758007838620,-9999.99,0.00024174,2]
[385750340,1758007838629,-1175.91,0.00024174,2]
[385750341,1758007838638,-13719.19,0.00024174,2]
[385750342,1758007838647,-2396.62,0.00024174,2]
[385750343,1758007838658,-1157.68,0.00024174,2]
[385750344,1758007838668,-999.99,0.00024174,2]
[385750345,1758007838677,-9999.99,0.00024174,2]
[385750346,1758007838687,-504.0,0.00024174,2]
[385750347,1758007838697,-2917.97,0.00024174,2]
[385750348,1758007838707,-9999.99,0.00024174,2]
[385750349,1758007838716,-77538.4,0.00024174,2]
[385750350,1758007838725,-499.99,0.00024174,2]
[385750351,1758007838735,-9999.99,0.00024174,2]
[385750352,1758007838744,-3748.07,0.00024174,2]
[385750353,1758007838753,-10964.03454008,0.00024344,2]
[385750354,1758007838763,-255.14,0.00024413,2]
[385750355,1758007838772,-10144.23757578,0.000245,2]
[385750356,1758007838781,-157.28,0.0002454,2]
[385750357,1758007838791,-151.22,0.00024658,2]
[385750358,1758007838800,-151.0,0.00024658,7]
[385750359,1758007838810,-151.0,0.00024658,7]
[385750361,1758007838819,-153.74877,0.00024658,7]
[385750362,1758007838828,-160.322362,0.00024658,7]
[385750363,1758007838838,-872.27424944,0.000247,2]
[385750364,1758007838848,-150.0,0.00024705,7]
[385750365,1758007838858,-472.13,0.00024741,2]
[385750366,1758007838868,-152.15,0.0002479,2]
[385750367,1758007838877,-355950.559529,0.000248,2]
[385750368,1758007838887,-151.0,0.000248,7]
[385750369,1758007838896,-151.0,0.000248,7]
[385750370,1758007838905,-151.0,0.000248,7]
[385750371,1758007838915,-155.654142,0.000248,7]
[385750372,1758007838927,-151.0,0.000248,7]
[385750373,1758007838936,-151.0,0.000248,7]
[385750374,1758007838946,-804.41,0.00024841,2]
[385750375,1758007838956,-267.46074303,0.00024885,2]
[385750376,1758007838966,-152.15,0.0002489,2]
[385750377,1758007838975,-14192.69554392,0.000249,2]
[385750378,1758007838984,-337242.44709566,0.000249,2]
[385750431,1758007845825,-364.97353041,0.0001999,2]
[385750432,1758007845834,-58.13133436,0.0002246,2]
[385750579,1758008325594,168.3,0.00027425,30]
[385750640,1758008701647,173.71,0.00012383,2]
[385750641,1758008701847,173.71,0.00018574,2]
[385750668,1758009032279,-290.40724461,0.00019897,2]
[385750669,1758009032288,-536.19533391,0.00019898,2]
[385750670,1758009032297,-1200.0,0.00019996,2]
[385750671,1758009032306,-659.0,0.00019997,2]
[385750672,1758009032315,-500.0,0.00019997,2]
[385750673,1758009032327,-500.0,0.00019997,2]
[385750674,1758009032338,-500.0,0.00019997,2]
[385750675,1758009032347,-500.0,0.00019997,2]
[385750676,1758009032358,-500.0,0.00019997,2]
[385750678,1758009032367,-603.94617951,0.00019997,2]
[385750679,1758009032376,-500.0,0.00019997,2]
[385750680,1758009032386,-500.0,0.00019997,2]
[385750681,1758009032395,-500.0,0.00019997,2]
[385750682,1758009032404,-500.0,0.00019997,2]
[385750683,1758009032413,-500.0,0.00019997,2]
[385750684,1758009032422,-500.0,0.00019997,2]
[385750685,1758009032431,-500.0,0.00019997,2]
[385750686,1758009032441,-500.0,0.00019997,2]
[385750687,1758009032450,-500.0,0.00019997,2]
[385750688,1758009032459,-500.0,0.00019997,2]
[385750689,1758009032469,-500.0,0.00019997,2]
[385750690,1758009032479,-500.0,0.00019997,2]
[385750691,1758009032488,-500.0,0.00019997,2]
[385750692,1758009032497,-500.0,0.00019997,2]
[385750693,1758009032506,-500.0,0.00019997,2]
[385750694,1758009032515,-500.0,0.00019997,2]
[385750695,1758009032525,-500.0,0.00019997,2]
[385750696,1758009032535,-500.0,0.00019997,2]
[385750697,1758009032544,-500.0,0.00019997,2]
[385750698,1758009032553,-500.0,0.00019997,2]
[385750699,1758009032562,-500.0,0.00019997,2]
[385750700,1758009032571,-500.0,0.00019997,2]
[385750701,1758009032580,-500.0,0.00019997,2]
[385750702,1758009032589,-500.0,0.00019997,2]
[385750704,1758009032599,-500.0,0.00019997,2]
[385750706,1758009032608,-500.0,0.00019997,2]
[385750708,1758009032617,-637.99332967,0.00019997,2]
[385750710,1758009032626,-500.0,0.00019997,2]
[385750712,1758009032635,-500.0,0.00019997,2]
[385750714,1758009032644,-500.0,0.00019997,2]
[385750717,1758009032653,-1423.0,0.00021878,2]
[385750719,1758009032662,-226.81,0.00022,2]
[385750721,1758009032671,-530.0,0.0002373,2]
[385750724,1758009032680,-226.81,0.00023862,2]
[385750726,1758009032689,-472.13,0.00023941,2]
[385750728,1758009032698,-500.0,0.00024173,2]
[385750731,1758009032707,-501.62234327,0.00024173,2]
[385750735,1758009032717,-505.93543058,0.00024173,2]
[385750739,1758009032726,-270.39363055,0.00024173,2]
[385750742,1758009032735,-999.99,0.00024174,2]
[385750747,1758009032744,-962.61,0.00024174,2]
[385750750,1758009032753,-21234.66430158,0.00024174,2]
[385750755,1758009032768,-67203.75569842,0.00024174,2]
[385750758,1758009032777,-2507.09,0.00024174,2]
[385750762,1758009032786,-150.99,0.00024174,2]
[385750765,1758009032795,-1507.13,0.00024174,2]
[385750768,1758009032804,-831.88,0.00024174,2]
[385750771,1758009032813,-9999.99,0.00024174,2]
[385750773,1758009032822,-9999.99,0.00024174,2]
[385750775,1758009032831,-472.13,0.00024241,2]
[385750777,1758009032841,-529.0,0.00024367,7]
[385750778,1758009032851,-530.0,0.00024483,2]
[385750779,1758009032860,-162.57,0.000246,7]
[385750780,1758009032870,-529.0,0.0002463,7]
[385750781,1758009032879,-151.22,0.00024658,2]
[385750782,1758009032888,-1981.7161957,0.00024659,2]
[385750784,1758009032897,-529.0,0.00024677,2]
[385750785,1758009032906,-503.47548608,0.00024721,2]
[385750786,1758009032915,-529.0,0.00024756,2]
[385750787,1758009032924,-529.0,0.00024758,2]
[385750788,1758009032934,-255.14,0.00024766,2]
[385750789,1758009032943,-173.71,0.00024766,2]
[385750790,1758009032951,-529.0,0.00024798,7]
[385750791,1758009032961,-4385.61381605,0.00024799,2]
[385750792,1758009032970,-529.0,0.00024801,2]
[385750793,1758009032978,-250.0,0.00024812,2]
[385750794,1758009032987,-666.0,0.00024819,3]
[385750795,1758009032996,-10117.05,0.00024822,7]
[385750796,1758009033006,-921.2181,0.00024899,2]
[385750797,1758009033016,-13624.98772224,0.000249,2]
[385750798,1758009033025,-170.0,0.00024932,7]
[385750799,1758009033034,-170.0,0.00025,7]
[385750800,1758009033044,-529.0,0.00025012,2]
[385750801,1758009033053,-185.59,0.00025064,2]
[385750802,1758009033062,-471.86,0.00025096,2]
[385750803,1758009033072,-943.72,0.00025096,2]
[385750804,1758009033081,-529.0,0.00025102,2]
[385750805,1758009033090,-3677.0,0.00025109,2]
[385750806,1758009033101,-929.0,0.00025112,2]
[385750807,1758009033110,-150.0,0.000252,4]
[385750808,1758009033120,-160.48138757,0.000252,4]
[385750809,1758009033129,-150.0,0.000252,4]
[385750810,1758009033138,-150.0,0.000252,4]
[385750811,1758009033147,-150.0,0.000252,4]
[385750812,1758009033156,-151.0,0.00025251,2]
[385750813,1758009033166,-529.0,0.0002526,2]
[385750814,1758009033176,-295.76766871,0.00025288,2]
[385750815,1758009033185,-2170.25602373,0.00025289,2]
[385750816,1758009033197,-1185.44153094,0.00025289,2]
[385750817,1758009033206,-322.6107,0.00025289,2]
[385750818,1758009033215,-267.46074303,0.00025289,2]
[385750819,1758009033224,-250.0,0.00025289,2]
[385750820,1758009033234,-250.0,0.00025289,2]
[385750821,1758009033243,-250.0,0.00025289,2]
[385750822,1758009033252,-250.0,0.00025289,2]
[385750823,1758009033261,-250.0,0.00025289,2]
[385750824,1758009033270,-250.0,0.00025289,2]
[385750825,1758009033279,-250.0,0.00025289,2]
[385750826,1758009033288,-250.0,0.00025289,2]
[385750827,1758009033297,-259.09268663,0.00025289,2]
[385750828,1758009033307,-529.0,0.00025289,2]
[385750829,1758009033316,-168.0,0.00025307,2]
[385750830,1758009033325,-529.0,0.00025312,2]
[385750831,1758009033334,-171.84,0.00025315,2]
[385750832,1758009033344,-2414.94,0.00025315,2]
[385750833,1758009033353,-529.0,0.00025358,7]
[385750834,1758009033363,-364.208,0.00025367,10]
[385750835,1758009033373,-194.0176129,0.00025367,10]
[385750836,1758009033382,-192.5475,0.00025588,2]
[385750837,1758009033392,-226.81,0.00025725,7]
[385750838,1758009033401,-151.0,0.00025799,2]
[385750839,1758009033410,-170.0,0.0002589,7]
[385750840,1758009033420,-168.0,0.0002591,2]
[385750841,1758009033430,-4385.61381603,0.0002599,2]
[385750842,1758009033440,-150.0,0.0002599,2]
[385750843,1758009033449,-1619.47937291,0.00026,2]
[385750844,1758009033462,-8380.52062609,0.00026,2]
[385750845,1758009033472,-166.68,0.00026065,2]
[385750846,1758009033481,-999.6525439,0.00026189,2]
[385750847,1758009033490,-162.91,0.00026307,2]
[385750848,1758009033500,-7785.805,0.00026492,2]
[385750849,1758009033509,-154.25,0.0002657,2]
[385750850,1758009033519,-183.0,0.00026608,2]
[385750851,1758009033528,-234.31249286,0.00026658,2]
[385750852,1758009033596,-100.23480304,0.00026658,2]
[385750853,1758009033605,-277.35679052,0.00026658,2]
[385750854,1758009033615,-288.40840644,0.00026684,2]
[385750855,1758009033628,-508.67861572,0.00026684,2]
[385750862,1758009038163,-293.10417784,0.00026684,2]
[385750863,1758009038173,-1000.0,0.000267,2]
[385750864,1758009038182,-2971.2461,0.000267,2]
[385750865,1758009038191,-2471.03384097,0.000267,2]
[385751046,1758009040261,-28.96615903,0.000267,2]
[385751048,1758009040271,-500.0,0.00026773,2]
[385751050,1758009040281,-159.80894788,0.00026773,2]
[385751052,1758009040290,-200.0,0.00026773,2]
[385751054,1758009040299,-200.0,0.00026784,2]
[385751056,1758009040310,-1241.09772978,0.0002679,2]
[385751360,1758009043293,-295.69061573,0.00019997,2]
[385751362,1758009043302,-20496.14292454,0.0002679,2]
[385751367,1758009043336,-2814.53487334,0.0002679,2]
[385751403,1758009043660,-207.0373681,0.00024173,2]
[385751405,1758009043673,-99.16124967,0.0002679,2]
[385751703,1758009046575,-178.21624217,0.00019996,2]
[385751705,1758009046585,-192.34675783,0.00019996,2]
[385751884,1758009317718,263.08,0.00024864,120]
[385751885,1758009373365,168.3,0.00027425,30]
[385751887,1758009547868,770.0,0.0003013,120]
[385751888,1758009553234,-366.47822514,0.00019817,2]
[385751889,1758009653881,155.42,0.00011578,2]
[385751890,1758009661575,1359.45,0.00030136,120]
[385751891,1758009668950,-1377281.36148764,0.00036902,30]
[385751892,1758009668977,-1531.13508134,0.00036902,120]
[385751893,1758009669004,-11300.0,0.00036902,120]
[385751894,1758009669030,-11438.58109465,0.00036902,120]
[385751895,1758009669056,-164.21727345,0.00036902,60]
[385751896,1758009669082,-937.56652795,0.00036902,120]
[385751897,1758009669108,-221.73510044,0.00036902,91]
[385751898,1758009669133,-1364.80801343,0.00036902,120]
[385751899,1758009669158,-202.5349802,0.00036902,90]
[385751900,1758009669186,-169.6633677,0.00036902,120]
[385751901,1758009669211,-159.15032998,0.00036902,30]
[385751902,1758009669235,-152.29871774,0.00036902,30]
[385751903,1758009669261,-1981.78067733,0.00036902,60]
[385751904,1758009669285,-1879.74691441,0.00036902,120]
[385751905,1758009669310,-169.07786276,0.00036902,30]
[385751906,1758009669334,-150.65190772,0.00036902,120]
[385751907,1758009669359,-435.80924196,0.00036902,120]
[385751908,1758009669384,-5000.0,0.00036902,30]
[385751909,1758009669409,-323.13111524,0.00036902,120]
[385751910,1758009669435,-500.0,0.00036902,120]
[385751911,1758009669462,-500.0,0.00036902,120]
[385751912,1758009669488,-500.0,0.00036902,120]
[385751913,1758009669514,-500.0,0.00036902,120]
[385751914,1758009669539,-500.0,0.00036902,120]
[385751915,1758009669564,-500.0,0.00036902,120]
[385751916,1758009669591,-500.0,0.00036902,120]
[385751917,1758009669616,-500.0,0.00036902,120]
[385751918,1758009669643,-500.0,0.00036902,120]
[385751919,1758009669670,-462.2372,0.00036902,120]
[385751920,1758009669696,-8680274.51310606,0.00036902,60]
[385751921,1758009677365,-5893012.88689394,0.00036902,60]
[385751922,1758009677390,-1097.87054003,0.00036902,120]
[385751923,1758009677415,-38156.76410594,0.00036902,120]
[385751924,1758009677440,-463297.02964712,0.00036902,120]
[385751925,1758009677465,-400.0,0.00036902,120]
[385751926,1758009677490,-12596.0,0.00036902,30]
[385751927,1758009677515,-209.93407131,0.00036902,120]
[385751928,1758009677540,-823602.84,0.00036902,30]
[385751929,1758009677566,-50000.0,0.00036902,30]
[385751930,1758009677592,-400.0,0.00036902,120]
[385751931,1758009677617,-400.0,0.00036902,120]
[385751932,1758009677642,-500.0,0.00036902,120]
[385751933,1758009677666,-500.0,0.00036902,120]
[385751934,1758009677690,-243.52185082,0.00036902,120]
[385751935,1758009677716,-269095.19012878,0.00036902,120]
[385751936,1758009677742,-400.0,0.00036902,120]
[385751937,1758009677767,-1262.0,0.00036902,30]
[385751938,1758009677792,-80813.01812097,0.00036902,120]
[385751939,1758009677816,-10525.91410567,0.00036902,120]
[385751940,1758009677841,-8558.03573491,0.00036902,120]
[385751941,1758009677867,-400.0,0.00036902,120]
[385751942,1758009677892,-400.0,0.00036902,120]
[385751943,1758009677918,-50000.0,0.00036902,80]
[385751944,1758009677943,-50000.0,0.00036902,90]
[385751945,1758009677970,-2344228.99480051,0.00036902,30]
[385751946,1758009707604,-10200200.0,0.00036902,30]
[385751947,1758009711790,-2749471.42021162,0.00036902,30]
[385751948,1758009711817,-167486.39810034,0.00036902,30]
[385751949,1758009711845,-7283242.18168804,0.00036902,30]
[385751957,1758009898745,-172.38701647,0.00019767,2]
[385751958,1758009902170,-24.11172553,0.00019767,2]
[385751959,1758009908711,225.0,0.0001,2]
[385751960,1758009925837,-200.0,0.00019817,2]
[385751961,1758009925850,-100.0,0.00019817,2]
[385751962,1758009925859,-200.0,0.00019817,2]
[385752010,1758010232387,-100.0,0.00019817,2]
[385752012,1758010232396,-300.0,0.00019921,2]
[385752014,1758010232406,-412.78175547,0.00019921,2]
[385752016,1758010232415,-300.0,0.00019972,2]
[385752018,1758010232424,-1200.0,0.00019972,2]
[385752020,1758010232434,-300.0,0.00019972,2]
[385752022,1758010232443,-500.0,0.00019973,2]
[385752024,1758010232452,-500.0,0.00019973,2]
[385752025,1758010232461,-501.21156674,0.00019973,2]
[385752026,1758010232472,-500.0,0.00019973,2]
[385752027,1758010232481,-172.89170282,0.00019973,2]
[385752030,1758010233010,-327.10829718,0.00019973,2]
[385752031,1758010233019,-231.6980187,0.00019973,2]
[385752033,1758010233032,-269.34489921,0.00019973,2]
[385752035,1758010233042,-500.0,0.00019973,2]
[385752037,1758010233052,-500.0,0.00019973,2]
[385752040,1758010233063,-501.29116233,0.00019973,2]
[385752043,1758010233073,-500.0,0.00019973,2]
[385752046,1758010233082,-500.0,0.00019973,2]
[385752048,1758010233092,-531.5020223,0.00019973,2]
[385752050,1758010233102,-500.0,0.00019973,2]
[385752052,1758010233112,-500.95748089,0.00019973,2]
[385752054,1758010233122,-500.0,0.00019973,2]
[385752056,1758010233132,-502.2509248,0.00019973,2]
[385752057,1758010233142,-500.0,0.00019973,2]
[385752058,1758010233152,-500.0,0.00019987,2]
[385752059,1758010233162,-500.0,0.00019987,2]
[385752060,1758010233172,-500.0,0.00019987,2]
[385752061,1758010233181,-337.92631381,0.00019987,2]
[385752062,1758010233191,-331.65651957,0.00019987,2]
[385752063,1758010233200,-500.0,0.00019987,2]
[385752064,1758010233209,-500.0,0.00019987,2]
[385752065,1758010233220,-500.0,0.00019987,2]
[385752066,1758010233229,-500.0,0.00019987,2]
[385752067,1758010233238,-284.18186502,0.00019987,2]
[385752068,1758010233247,-500.0,0.00019987,2]
[385752069,1758010233257,-500.0,0.00019987,2]
[385752070,1758010233266,-198.11409782,0.00019987,2]
[385752071,1758010233275,-500.0,0.00019987,2]
[385752072,1758010233284,-500.0,0.00019987,2]
[385752073,1758010233294,-500.0,0.00019987,2]
[385752074,1758010233303,-500.0,0.00019987,2]
[385752075,1758010233313,-500.0,0.00019987,2]
[385752076,1758010233323,-500.0,0.00019987,2]
[385752077,1758010233332,-500.0,0.00019987,2]
[385752078,1758010233341,-500.0,0.00019987,2]
[385752079,1758010233351,-500.0,0.00019987,2]
[385752080,1758010233361,-500.0,0.00019987,2]
[385752081,1758010233370,-500.0,0.00019987,2]
[385752082,1758010233379,-500.0,0.00019987,2]
[385752083,1758010233389,-500.0,0.00019987,2]
[385752084,1758010233399,-500.0,0.00019987,2]
[385752085,1758010233408,-500.0,0.00019987,2]
[385752086,1758010233418,-500.0,0.00019987,2]
[385752087,1758010233427,-500.0,0.00019987,2]
[385752088,1758010233437,-500.0,0.00019987,2]
[385752089,1758010233449,-500.0,0.00019987,2]
[385752090,1758010233459,-500.0,0.00019987,2]
[385752091,1758010233469,-500.0,0.00019987,2]
[385752092,1758010233479,-500.0,0.00019987,2]
[385752093,1758010233489,-500.0,0.00019987,2]
[385752094,1758010233498,-500.0,0.00019987,2]
[385752095,1758010233508,-500.0,0.00019987,2]
[385752096,1758010233517,-500.0,0.00019987,2]
[385752097,1758010233526,-500.0,0.00019987,2]
[385752098,1758010233535,-500.0,0.00019987,2]
[385752099,1758010233545,-500.0,0.00019987,2]
[385752100,1758010233557,-500.0,0.00019987,2]
[385752101,1758010233567,-500.0,0.00019987,2]
[385752102,1758010233577,-225.09361883,0.00019987,2]
[385752103,1758010233586,-500.0,0.00019987,2]
[385752104,1758010233596,-500.0,0.00019987,2]
[385752105,1758010233606,-500.0,0.00019987,2]
[385752106,1758010233615,-500.0,0.00019987,2]
[385752107,1758010233625,-500.0,0.00019987,2]
[385752108,1758010233635,-500.0,0.00019987,2]
[385752109,1758010233646,-500.0,0.00019987,2]
[385752110,1758010233655,-500.0,0.00019987,2]
[385752111,1758010233664,-500.0,0.00019987,2]
[385752112,1758010233674,-500.0,0.00019987,2]
[385752113,1758010233683,-500.0,0.00019987,2]
[385752114,1758010233694,-500.0,0.00019987,2]
[385752115,1758010233704,-500.0,0.00019987,2]
[385752116,1758010233714,-322.50936189,0.00019987,2]
[385752117,1758010233725,-500.0,0.00019987,2]
[385752118,1758010233735,-500.0,0.00019987,2]
[385752119,1758010233746,-500.0,0.00019987,2]
[385752120,1758010233755,-500.0,0.00019987,2]
[385752121,1758010233766,-500.0,0.00019987,2]
[385752122,1758010233776,-500.0,0.00019987,2]
[385752123,1758010233785,-150.0,0.00019989,2]
[385752124,1758010233795,-150.0,0.00019993,2]
[385752125,1758010233805,-150.0,0.00019993,2]
[385752126,1758010233814,-152.87030137,0.00019993,2]
[385752127,1758010233823,-150.0,0.00019993,2]
[385752128,1758010233833,-549.0,0.00019993,2]
[385752129,1758010233842,-150.0,0.00019993,2]
[385752130,1758010233852,-500.0,0.00019993,2]
[385752131,1758010233862,-500.0,0.00019993,2]
[385752132,1758010233871,-500.0,0.00019993,2]
[385752133,1758010233881,-200.0,0.00019993,2]
[385752134,1758010233890,-500.0,0.00019993,2]
[385752135,1758010233899,-150.0,0.00019993,2]
[385752136,1758010233909,-150.0,0.00019993,2]
[385752137,1758010233919,-251.64514576,0.00019993,2]
[385752138,1758010233929,-151.03140511,0.00019993,2]
[385752139,1758010233939,-150.0,0.00019993,2]
[385752140,1758010233950,-500.0,0.00019993,2]
[385752141,1758010233959,-150.0,0.00019993,2]
[385752142,1758010233969,-150.0,0.00019993,2]
[385752143,1758010233979,-258.61,0.00019993,2]
[385752144,1758010233990,-500.0,0.0002,2]
[385752145,1758010234000,-508.45536329,0.0002,2]
[385752146,1758010234009,-501.49502862,0.0002,2]
[385752147,1758010234019,-502.41325708,0.0002,2]
[385752148,1758010234028,-543.68385455,0.0002,2]
[385752149,1758010234040,-169.18014752,0.0002,2]
[385752150,1758010234051,-500.0,0.0002,2]
[385752151,1758010234061,-500.0,0.0002,2]
[385752152,1758010234070,-387.51284457,0.0002,2]
[385752153,1758010234080,-150.0,0.00020267,2]
[385752154,1758010234090,-150.0,0.00020267,2]
[385752155,1758010234099,-150.0,0.00020267,2]
[385752156,1758010234108,-549.0,0.00020267,2]
[385752157,1758010234118,-500.0,0.00020267,2]
[385752158,1758010234127,-500.0,0.00020267,2]
[385752159,1758010234136,-500.0,0.00020267,2]
[385752160,1758010234145,-500.0,0.00020267,2]
[385752161,1758010234154,-150.0,0.00020267,2]
[385752162,1758010234163,-200.0,0.00020267,2]
[385752163,1758010234172,-150.0,0.00020267,2]
[385752164,1758010234182,-150.0,0.00020267,2]
[385752165,1758010234191,-500.0,0.00020521,2]
[385752166,1758010234200,-502.14629296,0.00020521,2]
[385752167,1758010234209,-1000.0,0.00020521,2]
[385752168,1758010234219,-500.0,0.00020521,2]
[385752169,1758010234229,-1000.0,0.00020521,2]
[385752170,1758010234238,-504.5498583,0.00020521,2]
[385752171,1758010234247,-1000.0,0.00020521,2]
[385752172,1758010234256,-1000.0,0.00020521,2]
[385752173,1758010234265,-1000.0,0.00020521,2]
[385752174,1758010234274,-668.6520661,0.00020521,2]
[385752175,1758010234283,-256.3075449,0.00020541,2]
[385752176,1758010234292,-200.0,0.00020541,2]
[385752177,1758010234301,-200.0,0.00020541,2]
[385752178,1758010234311,-549.0,0.00020541,2]
[385752179,1758010234320,-500.0,0.00020541,2]
[385752180,1758010234329,-646.76158562,0.00020541,2]
[385752181,1758010234338,-500.0,0.00020541,2]
[385752182,1758010234347,-500.0,0.00020541,2]
[385752183,1758010234356,-200.0,0.00020541,2]
[385752184,1758010234366,-150.0,0.00020541,2]
[385752185,1758010234375,-200.0,0.00020541,2]
[385752186,1758010234384,-1020.01232098,0.00020548,2]
[385752187,1758010234393,-998.49378293,0.00020548,2]
[385752188,1758010234402,-1000.0,0.00020548,2]
[385752189,1758010234411,-150.0,0.00020548,2]
[385752190,1758010234420,-549.0,0.00020815,2]
[385752191,1758010234430,-500.0,0.00020815,2]
[385752192,1758010234440,-500.0,0.00020815,2]
[385752193,1758010234449,-150.0,0.00020815,2]
[385752194,1758010234458,-150.0,0.00020822,2]
[385752195,1758010234467,-1474.59102708,0.00021068,2]
[385752196,1758010234477,-1020.32162243,0.00021068,2]
[385752198,1758010234487,-549.0,0.00021089,2]
[385752199,1758010234496,-500.0,0.00021089,2]
[385752200,1758010234505,-150.0,0.00021089,2]
[385752201,1758010234514,-200.0,0.00021096,2]
[385752202,1758010234524,-549.0,0.00021363,2]
[385752203,1758010234533,-500.0,0.00021363,2]
[385752204,1758010234543,-200.0,0.00021363,2]
[385752205,1758010234553,-500.0,0.00021363,2]
[385752206,1758010234566,-549.0,0.00021637,2]
[385752207,1758010234575,-66.23458983,0.00021637,2]
[385752208,1758010234615,-433.76541017,0.00021637,2]
[385752209,1758010234624,-300.0,0.00021744,2]
[385752210,1758010234634,-420.0,0.00021747,2]
[385752211,1758010234643,-53.21119304,0.00021852,2]
[385752212,1758010234654,-1626.78880696,0.00021852,2]
[385752213,1758010234663,-549.0,0.00021911,2]
[385752214,1758010234673,-500.0,0.00021911,2]
[385752215,1758010234682,-151.2,0.00022,2]
[385752216,1758010234691,-549.0,0.00022185,2]
[385752217,1758010234700,-500.0,0.00022185,2]
[385752218,1758010234709,-549.0,0.00022459,2]
[385752219,1758010234719,-500.0,0.00022459,2]
[385752220,1758010234729,-4177.94716105,0.00022562,2]
[385752221,1758010234752,-5822.04283895,0.00022562,2]